Cogmind - Beta 16.1 @@@ ROGUE MODE // 2026.03.10 @ 07:52:24 Player: OniAn Result: Destroyed by G-47 Trooper with Particle Gun Performance ------------- Evolutions (2) 1000 Regions Visited (6) 1200 Robots Destroyed (47) 235 Value Destroyed (1333) 1333 Prototype IDs (23) 460 Alien Tech Used (0) 0 Bonus (663) 663 TOTAL SCORE: 4891 Bonus ------- High Alert Combat Kills 118 Follower Combat Kills 45 Entered Garrisons 200 Aligned with FarCom 300 Cogmind --------- Core Integrity 0/550 Matter 300/300 Energy 204/210 System Corruption 21% Temperature Warning (320) Movement Walking (120) Location -8/Garrison Parts ------- > --- POWER (2) -------- Light Nuclear Core (fused) Micro Nuclear Core > --- PROPULSION (3) --- Carbon-fiber Leg Carbon-fiber Leg Improved Carbon-fiber Leg > --- UTILITY (4) ------ Medium Storage Unit > --- WEAPON (2) ------- Heavy Assault Rifle > --- INVENTORY (10) --- Light Nuclear Core Improved Deuterium Engine Improved Deuterium Engine Improved Carbon-fiber Leg Structural Scanner Advanced Visual Processing Unit Latent Energy Streamer Datajack Peak State ------------ > --- POWER ------------ Light Nuclear Core Improved Deuterium Engine > --- PROPULSION ------- Carbon-fiber Leg Improved Carbon-fiber Leg Improved Carbon-fiber Leg > --- UTILITY ---------- Advanced Heat Sink Medium Storage Unit Light Armor Plating Hardlight Generator > --- WEAPON ----------- Beam Rifle Latent Energy Streamer > --- INVENTORY -------- Improved Deuterium Engine Improved Deuterium Engine Improved Carbon-fiber Leg Structural Scanner Advanced Visual Processing Unit Particle Gun Heavy Assault Rifle Datajack [Rating: 42] Favorites ----------- Power Light Nuclear Core Engine Improved Deuterium Engine Power Core Light Nuclear Core Propulsion Light Treads Treads Light Treads Leg Improved Carbon-fiber Leg Utility Small Storage Unit Device Advanced Heat Sink Storage Small Storage Unit Protection Light Armor Plating Weapon Particle Gun Energy Gun Particle Gun Energy Cannon Latent Energy Streamer Ballistic Gun Heavy Assault Rifle Launcher Grenade Launcher Special Melee Weapon Datajack Build | -11 -10 -10 -10 -9 -8 -8 ------- Run | Yrd Mat Min Exi Min Mat Gar Slots Evolved 4 | . . . . . 4 . Power 1 | . . . . . 1 . Propulsion 1 | . . . . . 1 . Utility 2 | . . . . . 2 . Weapon . | . . . . . . . Parts Attached 45 | 6 1 . . 1 27 10 Power 11 | 1 . . . 1 6 3 Engine 6 | 1 . . . 1 4 . Core 5 | . . . . . 2 3 Reactor . | . . . . . . . Propulsion 10 | 2 . . . . 7 1 Treads 2 | 2 . . . . . . Leg 8 | . . . . . 7 1 Wheel . | . . . . . . . Hover . | . . . . . . . Flight . | . . . . . . . Utility 11 | 1 1 . . . 8 1 Device 6 | . 1 . . . 5 . Storage 3 | 1 . . . . 2 . Processor . | . . . . . . . Hackware . | . . . . . . . Protection 2 | . . . . . 1 1 Artifact . | . . . . . . . Weapon 13 | 2 . . . . 6 5 Energy Gun 7 | 2 . . . . 3 2 Energy Cannon 1 | . . . . . . 1 Ballistic Gun 2 | . . . . . 1 1 Ballistic Cannon . | . . . . . . . Launcher 2 | . . . . . 2 . Special Weapon . | . . . . . . . Impact Weapon . | . . . . . . . Slashing Weapon . | . . . . . . . Piercing Weapon . | . . . . . . . Special Melee Weapon 1 | . . . . . . 1 Unidentified Prototypes . | . . . . . . . Corrupted Parts 1 | . . . . . . 1 System Corruption 3 | . . . . . . 3 Parts Lost 21 | . . . . 1 11 9 Power 6 | . . . . 1 4 1 Propulsion 4 | . . . . . 3 1 Utility 5 | . . . . . 1 4 Weapon 6 | . . . . . 3 3 Highest Loss Streak 5 | . . . . 1 3 5 To Critical Strikes . | . . . . . . . Average Backups 5 | . 1 3 3 4 5 8 Power 1 | . . . . . 1 2 Propulsion . | . . . . . . 1 Utility 1 | . . . . . . 2 Weapon 1 | . 1 2 2 3 2 1 Tool/Special . | . . . . . . . Unused Backups 4 | . . . . . . 4 Power 2 | . . . . . . 2 Propulsion 1 | . . . . . . 1 Utility 1 | . . . . . . 1 Weapon . | . . . . . . . Tool/Special . | . . . . . . . Average Slot Usage (%) 89 | . 96 100 100 100 71 96 Engine 9 | . 14 14 14 14 8 7 Core 5 | . . . . . 4 10 Treads 11 | . 28 28 28 28 7 . Leg 12 | . . . . . 11 25 Device 14 | . 10 14 14 14 11 17 Storage 10 | . 14 14 14 14 9 9 Protection 3 | . . . . . 1 8 Energy Gun 18 | . 28 28 28 28 14 12 Ballistic Gun 2 | . . . . . 2 4 Peak Build Rating 42 | 6 7 7 8 8 37 42 Average Rating 20 | 4 6 7 7 7 19 33 On Entrance 10 | . 6 7 7 8 8 34 Avg Prop Armor Cover (%) . | . . . . . . . Naked Turns . | . . . . . . . Heaviest Build 47 | 11 12 12 12 14 40 47 Greatest Support 54 | 40 40 40 40 40 54 51 Greatest Overweight (x) 6 | . . . . . 6 1 Average Overweight (x) . | . . . . . . . Largest Inventory Capacity 10 | 8 8 8 8 8 10 10 Average Capacity 8 | 6 8 8 8 8 8 10 Most Carried 10 | . 3 3 4 4 10 10 Average Carried 5 | . 1 3 3 4 5 8 Final Capacity 10 | 8 8 8 8 8 10 10 Final Carried 8 | . 3 3 4 4 8 8 Class Distribution -------------------- 52% | Scavenger-Mutant 47% | Mutant Dominant Class ---------------- Mutant | -10/Materials Mutant | -10/Mines Mutant | -10/Exiles Mutant | -9/Mines Scavenger-Mutant | -8/Materials Scavenger-Mutant | -8/Garrison Resources | -11 -10 -10 -10 -9 -8 -8 ----------- Run | Yrd Mat Min Exi Min Mat Gar Matter Collected 907 | 141 47 . . 85 231 403 Remotely . | . . . . . . . Salvage Created 1522 | . 47 . . 95 606 774 Parts 79 | . 3 . . 1 36 39 Haulers Intercepted . | . . . . . . . Recyclers Shooed . | . . . . . . . Parts Field Recycled . | . . . . . . . Retrieved Matter . | . . . . . . . Parts Self-Destructed . | . . . . . . . Prevented . | . . . . . . . Parts Restored . | . . . . . . . Kills | -11 -10 -10 -10 -9 -8 -8 ------- Run | Yrd Mat Min Exi Min Mat Gar Combat Hostiles Destroyed 43 | . 1 . . 2 16 24 Guns 27 | . 1 . . 2 13 11 Cannons 2 | . . . . . . 2 AOE 11 | . . . . . 3 8 Classes Destroyed 8 | . 1 . . . 6 1 Worker 1 | . . . . . 1 . Recycler 2 | . . . . . 2 . Watcher 1 | . . . . . 1 . Swarmer 20 | . . . . . 8 12 Grunt 18 | . 1 . . 2 6 9 Duelist 2 | . . . . . 1 1 Sentry 1 | . . . . . 1 . Programmer 2 | . . . . . . 2 Best Kill Streak 8 | . 1 . . 1 8 5 Combat Bots Only 5 | . 1 . . 1 5 5 Max Kills in Single Turn 4 | . 1 . . 1 3 4 Gunslinging . | . . . . . . . Exploded 3 | . . . . . 1 3 Melee . | . . . . . . . Uniques/NPCs Destroyed . | . . . . . . . Combat | -11 -10 -10 -10 -9 -8 -8 -------- Run | Yrd Mat Min Exi Min Mat Gar Hostile Shots Fired 327 | . . . . 26 121 180 Missed 104 | . . . . 6 33 65 Hits 223 | . . . . 20 88 115 Melee 5 | . . . . . 5 . Projectile 218 | . . . . 20 83 115 Critical Strikes 10 | . . . . . 4 6 Damage Taken 2764 | . . . . 245 1313 1206 Core 578 | . . . . 20 279 279 Absorbed by Shields 316 | . . . . . . 316 Core Remaining (%) 96 | 100 . . . 92 . . Volleys Fired 130 | . 1 . . 11 53 65 Largest 2 | . 2 . . 2 2 2 Hottest 125 | . 90 . . 90 121 125 Shots Fired 241 | . 2 . . 22 91 126 Gun 229 | . 2 . . 22 87 118 Cannon 8 | . . . . . . 8 Launcher 4 | . . . . . 4 . Special . | . . . . . . . Kinetic 56 | . . . . . 23 33 Thermal 168 | . 2 . . 22 64 80 Explosive 4 | . . . . . 4 . Electromagnetic 13 | . . . . . . 13 Robot Hit Streak 8 | . 2 . . 7 8 7 Robot Miss Streak 5 | . . . . 2 5 4 Penetration Max . | . . . . . . . Secondary Targets 6 | . . . . 1 2 3 Max Gunslinging Chain 1 | . . . . 1 1 1 Shots Hit Robots 129 | . 2 . . 14 44 69 Core Hits 81 | . 2 . . 5 37 37 Critical Kills 1 | . . . . . 1 . Critical Parts Destroyed . | . . . . . . . Critical Strikes 11 | . . . . 1 2 8 Burn 10 | . . . . 1 1 8 Destroy 1 | . . . . . 1 . Melee Attacks 5 | . . . . . . 5 Impact . | . . . . . . . Slashing . | . . . . . . . Piercing . | . . . . . . . Sneak Attacks 5 | . . . . . . 5 Combat Hostiles . | . . . . . . . Follow-up Attacks . | . . . . . . . Damage Inflicted 3082 | . 25 . . 174 848 2035 Guns 1805 | . 25 . . 174 640 966 Cannons 43 | . . . . . . 43 Explosions 1234 | . . . . . 208 1026 Melee . | . . . . . . . Ramming . | . . . . . . . Kinetic 299 | . . . . . 125 174 Thermal 1508 | . 25 . . 174 515 794 Explosive 208 | . . . . . 208 . Electromagnetic 1067 | . . . . . . 1067 Impact . | . . . . . . . Slashing . | . . . . . . . Piercing . | . . . . . . . Highest Corruption 21 | . . . . . . 21 Average Corruption 9 | . . . . . . 9 Corruption Purged . | . . . . . . . Corruption Blocked . | . . . . . . . Effects 37 | . . . . . . 37 Message Errors 9 | . . . . . . 9 Matter Fused 5 | . . . . . . 5 Heat Flow Errors 5 | . . . . . . 5 Energy Discharges 1 | . . . . . . 1 Parts Fused 2 | . . . . . . 2 Data Loss (minor) 6 | . . . . . . 6 Data Loss (major) 4 | . . . . . . 4 Alerts 1 | . . . . . . 1 Misdirections 2 | . . . . . . 2 Weapon Failures 2 | . . . . . . 2 Overload Shots . | . . . . . . . Overflow Damage 5 | . . . . . . 5 Projectiles . | . . . . . . . Explosions 5 | . . . . . . 5 Melee . | . . . . . . . Knockbacks . | . . . . . . . Impact . | . . . . . . . Kinetic . | . . . . . . . Secondary . | . . . . . . . Self-Inflicted Damage 37 | . . . . . 3 34 Shots 2 | . . . . . 1 1 Rammed . | . . . . . . . Targets Rammed . | . . . . . . . Kicked . | . . . . . . . Crushed . | . . . . . . . Highest Temperature 405 | . 30 . . 405 324 404 Average Temperature 110 | . 18 . . 224 108 75 Received Heat Transfer 890 | . . . . 138 342 410 Effects 5 | . . . . 1 2 2 Shutdowns 1 | . . . . 1 . . Interference 1 | . . . . . . 1 Short Circuit 2 | . . . . . 2 . Damage (minor) 1 | . . . . . . 1 Siege Activations . | . . . . . . . Martial Activations . | . . . . . . . Shielding Activations . | . . . . . . . Robots Disrupted . | . . . . . . . Combat Hostiles . | . . . . . . . Robots Corrupted 2 | . . . . . . 2 Combat Hostiles 2 | . . . . . . 2 Parts Fried 6 | . . . . . . 6 Impact Corruptions . | . . . . . . . Robots Melted 1 | . . . . . . 1 Combat Hostiles 1 | . . . . . . 1 Parts Melted 5 | . . . . 1 2 2 Heat Transferred 4310 | . 62 . . 521 1272 2455 Parts Sabotaged . | . . . . . . . Parts Stolen . | . . . . . . . Parts Stripped . | . . . . . . . Power Chain Reactions 1 | . . . . . . 1 Latent Energy Used 776 | . . . . . . 776 LE Corruption 15 | . . . . . . 15 Alert | -11 -10 -10 -10 -9 -8 -8 ------- Run | Yrd Mat Min Exi Min Mat Gar Maximum Alert Level 3 | . . . . . . 3 Low Security (%) 66 | 100 100 100 . 100 100 23 Level 1 8 | . . . . . . 18 Level 2 25 | . . . . . . 57 Level 3 . | . . . . . . . Level 4 . | . . . . . . . Level 5 . | . . . . . . . High Security . | . . . . . . . Max Security . | . . . . . . . Peak Influence 703 | . 20 . . 30 149 703 Initial 37 | . . . . . . 37 Average 194 | . . . . 14 75 376 Influence Increases 1319 | . 20 . . 55 458 786 Destroy 0b10 Robot/C 880 | . 20 . . 40 320 500 Destroy 0b10 Robot/NC 20 | . . . . . 20 . Destroy Leader 92 | . . . . 10 52 30 Allied During Kill 2 | . . . . . . 2 Successful Hack 9 | . . . . 5 4 . Disable Machine 15 | . . . . . 15 . Anti-Garrison Action 100 | . . . . . . 100 Destroy Structure 81 | . . . . . 32 49 Lose Combat Pursuer 120 | . . . . . 15 105 Influence Decreases 646 | . 20 . . 55 400 171 Entered New Map 21 | . . . . . . 21 Time Decay 355 | . 20 . . 45 290 . Lost Part 210 | . . . . 10 110 90 Lost Ally 60 | . . . . . . 60 Squads Dispatched 1 | . . . . . 1 . Investigation . | . . . . . . . Extermination . | . . . . . . . Reinforcement 1 | . . . . . 1 . Assault . | . . . . . . . Garrison . | . . . . . . . Intercept . | . . . . . . . Searches Triggered . | . . . . . . . Construction Impeded . | . . . . . . . Haulers Reinforced . | . . . . . . . Active Scanning Responses . | . . . . . . . Cargo Convoy Interrupts . | . . . . . . . Stealth | -11 -10 -10 -10 -9 -8 -8 --------- Run | Yrd Mat Min Exi Min Mat Gar Distress Signals 3 | . 1 . . . 1 1 Communications Jammed . | . . . . . . . Distress Signals . | . . . . . . . Times Spotted 62 | . 4 . . 3 19 36 Peak Tracking Total 8 | . 3 . . 3 6 8 Tactical Retreats 5 | . . . . . 1 4 Traps | -11 -10 -10 -10 -9 -8 -8 ------- Run | Yrd Mat Min Exi Min Mat Gar Traps Triggered 2 | . . . . . . 2 Indirectly . | . . . . . . . Trap Hack Attempts 4 | . . . . . . 4 Triggered . | . . . . . . . Disarmed 1 | . . . . . . 1 Reprogrammed . | . . . . . . . Reused . | . . . . . . . Traps Extracted . | . . . . . . . Installed . | . . . . . . . Triggered . | . . . . . . . Machines | -11 -10 -10 -10 -9 -8 -8 ---------- Run | Yrd Mat Min Exi Min Mat Gar Machines Disabled 1 | . . . . . 1 . Max in Single Turn 1 | . . . . . 1 . Machines Repaired . | . . . . . . . Machines Dismantled . | . . . . . . . Machines Sabotaged . | . . . . . . . Overloaded Fab Kills . | . . . . . . . Hacking | -11 -10 -10 -10 -9 -8 -8 --------- Run | Yrd Mat Min Exi Min Mat Gar Machines Accessed 8 | . . . 3 1 2 2 Terminals 4 | . . . . 1 1 2 Fabricators . | . . . . . . . Repair Stations . | . . . . . . . Recycling Units . | . . . . . . . Scanalyzers . | . . . . . . . Garrison Access 1 | . . . . . 1 . Total Hacks 14 | . . . 3 2 3 6 Successful 6 | . . . 3 2 1 . Failed 8 | . . . . . 2 6 Catastrophic 1 | . . . . . . 1 Database Lockouts . | . . . . . . . Manual 1 | . . . 1 . . . Terminals 9 | . . . . 2 1 6 Fabricators . | . . . . . . . Repair Stations . | . . . . . . . Recycling Units . | . . . . . . . Scanalyzers . | . . . . . . . Garrison Access 2 | . . . . . 2 . Terminal Hacks 5 | . . . 3 2 . . Record 2 | . . . 2 . . . Dispatch Records 1 | . . . . 1 . . Zone Layout 1 | . . . . 1 . . Proto ID Catalog 1 | . . . 1 . . . Fabricator Hacks . | . . . . . . . Repair Station Hacks . | . . . . . . . Recycling Unit Hacks . | . . . . . . . Scanalyzer . | . . . . . . . Garrison Access Hacks 1 | . . . . . 1 . Unlock Access 1 | . . . . . 1 . Unauthorized Hacks . | . . . . . . . Terminals . | . . . . . . . Fabricators . | . . . . . . . Repair Stations . | . . . . . . . Recycling Units . | . . . . . . . Scanalyzers . | . . . . . . . Garrison Access . | . . . . . . . Data Cores Recovered . | . . . . . . . Used . | . . . . . . . Hacking Detections 4 | . . . . 1 1 2 Full Trace Events 2 | . . . . . . 2 Feedback Events . | . . . . . . . Feedback Blocked . | . . . . . . . Robot Schematics Acquired . | . . . . . . . Robots Built . | . . . . . . . Authchips . | . . . . . . . Time . | . . . . . . . Total Robot Build Rating . | . . . . . . . Part Schematics Acquired . | . . . . . . . Parts Built . | . . . . . . . Authchips . | . . . . . . . Time . | . . . . . . . Total Part Build Rating . | . . . . . . . Part Studies Acquired . | . . . . . . . Parts Repaired . | . . . . . . . Time . | . . . . . . . Parts Recycled . | . . . . . . . Recycled Matter . | . . . . . . . Retrieved Matter . | . . . . . . . Retrieved Components . | . . . . . . . Parts Scanalyzed . | . . . . . . . Part Schematics Acquired . | . . . . . . . Parts Damaged . | . . . . . . . Bothacking | -11 -10 -10 -10 -9 -8 -8 ------------ Run | Yrd Mat Min Exi Min Mat Gar Used RIF Installer . | . . . . . . . Robots Hacked . | . . . . . . . Non-combat . | . . . . . . . Combat . | . . . . . . . Robot Hacks Applied . | . . . . . . . Relay Couplers Released . | . . . . . . . Fabnet Peak Effective % . | . . . . . . . Robots Rewired 4 | . . . . . . 4 Allies Hacked 1 | . . . . . . 1 Hacks Repelled . | . . . . . . . Allies | -11 -10 -10 -10 -9 -8 -8 -------- Run | Yrd Mat Min Exi Min Mat Gar Total Allies 4 | . . . . . . 4 Largest Group 2 | . . . . . . 2 Highest-Rated Group 36 | . . . . . . 36 Highest-Rated Ally 18 | . . . . . . 18 Total Orders . | . . . . . . . Ally Attacks 8 | . . . . . . 8 Total Damage 162 | . . . . . . 162 Kills 1 | . . . . . . 1 Allies Corrupted 1 | . . . . . . 1 Allies Melted . | . . . . . . . Intel | -11 -10 -10 -10 -9 -8 -8 ------- Run | Yrd Mat Min Exi Min Mat Gar Active Infowar (turns) 1143 | . 249 44 489 107 254 . Structural 1143 | . 249 44 489 107 254 . Robot Analysis Total . | . . . . . . . Derelict Logs Recovered . | . . . . . . . Drone Launches . | . . . . . . . Drone Recoveries . | . . . . . . . Exploration | -11 -10 -10 -10 -9 -8 -8 ------------- Run | Yrd Mat Min Exi Min Mat Gar Turns Passed 3043 | 66 306 44 489 107 898 1133 Spaces Moved 1746 | 39 187 28 306 45 485 656 Core 22 | 4 . . . . 18 . Treads 803 | 35 187 28 306 45 202 . Legs 921 | . . . . . 265 656 Wheels . | . . . . . . . Hover . | . . . . . . . Flight . | . . . . . . . Fastest Speed 50 | 50 160 160 160 160 120 120 Average Speed 143 | 148 160 160 160 160 144 127 Slowest Speed 350 | 160 160 160 160 160 350 190 Overloaded Moves . | . . . . . . . Propulsion Burnouts . | . . . . . . . Robots Hopped . | . . . . . . . Potential Cave-ins . | . . . . . . . Cave-ins Triggered . | . . . . . . . Exploration Rate (%) 28 | 4 28 8 60 11 35 56 Regions Visited 6 Branch Regions 3 Pre-discovered Areas . | . . . . . . . Known Exits Taken 1 | . . . . . 1 . Unknown Exits Taken 5 | 1 1 1 1 1 . . Scrap Searched . | . . . . . . . Spaces Dug . | . . . . . . . Terrain Destroyed 44 | . . . . . 35 9 Melee . | . . . . . . . Projectile . | . . . . . . . AOE 44 | . . . . . 35 9 Terrain Rammed . | . . . . . . . Walls Destroyed . | . . . . . . . Machines Disabled . | . . . . . . . Actions | -11 -10 -10 -10 -9 -8 -8 --------- Run | Yrd Mat Min Exi Min Mat Gar Total 2033 | 44 191 27 306 58 590 817 Wait 60 | . . . . 2 . 58 Move 1740 | 38 186 27 305 44 484 656 Hop . | . . . . . . . Pick Up 9 | . 3 . 1 . 5 . Fast Attach 28 | 6 1 . . 1 18 2 Attach 8 | . . . . . 4 4 Detach 7 | . . . . . 6 1 Swap 24 | . . . . . 10 14 Drop 11 | . . . . . 10 1 Fire 130 | . 1 . . 11 53 65 Melee 5 | . . . . . . 5 Ram . | . . . . . . . Kick . | . . . . . . . Crush . | . . . . . . . Escape Stasis 5 | . . . . . . 5 Rewire 2 | . . . . . . 2 Trap 4 | . . . . . . 4 Miscellaneous . | . . . . . . . Route ------- -11/Scrapyard -10/Materials -10/Mines -10/Exiles -9/Mines -8/Materials (discovered 2 exits: [*Fac] / Gar) -8/Garrison (discovered 3 exits: [*Fac x3]) History --------- Turn | Location | Event 18 | -11/Scrapyard | Discovered new exit (range 15) 67 | -11/Scrapyard | Entered Materials 316 | -10/Materials | Build established: Mutant 326 | -10/Materials | Discovered new exit (range 6) 373 | -10/Materials | Entered Mines 405 | -10/Mines | Deemed a non-threat by the Exiles lab entrance 405 | -10/Mines | Discovered new exit (range 6) 417 | -10/Mines | Entered Exiles 457 | -10/Exiles | Met 8R-AWN 483 | -10/Exiles | Met EX-HEX 533 | -10/Exiles | Met EX-BIN 552 | -10/Exiles | Aligned with FarCom system 553 | -10/Exiles | Given EX-Vault access code 601 | -10/Exiles | Opened EX-Vault 613 | -10/Exiles | Found Latent Energy Streamer 646 | -10/Exiles | Warned to stay clear of 0b10 Research branches 831 | -10/Exiles | Met EX-DEC 886 | -10/Exiles | Discovered new exit (range 14) 906 | -10/Exiles | Left Exiles lab with Latent Energy Streamer 906 | -10/Exiles | Entered Mines 951 | -9/Mines | Discovered new exit (range 13) 1013 | -9/Mines | Entered Materials 1013 | -8/Materials | Evolved 4 slots: Power x1, Propulsion x1, Utility x2 1499 | -8/Materials | Lost 3 parts (1p1n1w) 1652 | -8/Materials | Build established: Scavenger-Mutant 1754 | -8/Materials | Core integrity fell below 50% 1783 | -8/Materials | Lost 3 parts (1p1n1u) 1875 | -8/Materials | Discovered new exit (range 9) 1910 | -8/Materials | Identified exit to Garrison 1911 | -8/Materials | Entered Garrison 2145 | -8/Garrison | Triggered checkpoint 2299 | -8/Garrison | Triggered checkpoint 2336 | -8/Garrison | Discovered new exit (range 9) 2469 | -8/Garrison | System corruption reached 10% 2627 | -8/Garrison | Triggered checkpoint 2635 | -8/Garrison | Discovered new exit (range 15) 2815 | -8/Garrison | P-60 Hacker assimilated allied Rogue 3b 2831 | -8/Garrison | Core integrity fell below 20% 2842 | -8/Garrison | Lost 3 parts (1p1n1u) 2854 | -8/Garrison | Lost 3 allies 2954 | -8/Garrison | Discovered new exit (range 10) 2971 | -8/Garrison | Triggered checkpoint 3044 | -8/Garrison | Destroyed by G-47 Trooper with Particle Gun Last Messages --------------- cycle. 03020_ G-50 Soldier misfires. 03020_ Lgt. Armor Plating destroyed. 03021_ Hvy. Laser fried. 03021_ Lgt. Angular Momentum Engine fried. 03021_ G-50 Soldier destroyed. 03025_ Shock Rifle destroyed. 03028_ Adv. Heat Sink destroyed. 03030_ G-47 Trooper misfires. 03031_ System corrupted: Heat flow error (+227). 03034_ Particle Gun destroyed. 03036_ Overheating: System interference. 03036_ Hvy. Assault Rifle temporarily disabled. 03036_ G-47 Trooper misfires. 03038_ Acquired Corrupted Carbon-fiber Leg. 03038_ Integrated Corrupted Carbon-fiber Leg (+3). 03040_ Acquired 30 matter. 03043_ Overheating: Carbon-fiber Leg damaged (-50). Map ----- +----------------------------------------------------+ | ?## #??????# %#######??????????# #??######????? | | ??# #??????# =## #??????????# ^ #????????????? | | ??# ^#?????##" "# ############ #????????????? | | ??#^^####### " ^ % #????????????? | | ??# [ ^ #????????????? | | ??# == #????????????? | | ??########## # = [ ##! ###########????????????? | | ?????????### # %* ## ###????????????????????? | | ?????????# #????????????????????? | | ?????????# #????????????????????? | | ?????????# #????????????????????? | | ?????????# #????????????????????? | | ?????????###%! ## ## ###????????????????????? | | ???????????#= =## ## #??????????????????????? | | ???????????# = #??????????????????????? | | ???????????# #??????????????????????? | | ???????????# #??????????????????????? | | ???????????## ## %!## ##??????????????????????? | | ????????????# ## ## #???????????????????????? | | ????????????# ######## #???????????????????????? | | ????????????# #??????# ##### #?????????????????? | | ????????????# #??????# + ??????????? | | ????????????# #??????# g##### #?????????????????? | | ????????????# #??????#%g##??????????????????????? | | #############= #??????# ####;##????????????????? | | [!= [= #????### @ #????????????????? | | %*%[%* #????# # %/ ####### % ##?????? | | ################????## #%[ ### =%% s #?? | | ????????????????????## *## ## ####[;;;s"""#????? | | ????????????????????### ##### #?????? ?###????? | | ????????????????????## = %#?# #????????????????? | | ????????????????????##*%= *#?# #????????????????? | | ????????????????????##==![%#?# #????????????????? | | ?????????????????????#=# %##?# ????????????????? | | ?????????????????????##[|!#??#